[Event "Czech Extraliga 2024-25"]
[Site "Czechia"]
[Date "2024.11.02"]
[Round "1.8"]
[White "Sykora, Ondrej"]
[Black "Trasakova, Adela"]
[Result "1/2-1/2"]
[ECO "B12"]
[WhiteElo "2090"]
[BlackElo "1921"]
[Annotator "RC"]
[PlyCount "76"]
[EventDate "2024.09.12"]
[EventType "team-tourn"]
[EventCountry "CZE"]
[SourceTitle "playchess.com"]
[Source "ChessBase"]
[SourceQuality "1"]
[TimeControl "40/5400+30:1800+30"]

1. e4 {[%emt 0:00:02]} c6 {[%emt 0:00:01]} 2. d4 {[%emt 0:00:21]} d5 {[%emt 0:00:02]} 3. e5 {[%emt 0:00:07]} Bf5 {[%emt 0:00:14]} 4. Ne2 {[%emt 0:00:07]} e6 {[%emt 0:00:30]} 5. Ng3 {[%emt 0:00:07]} Bg6 {[%emt 0:00:06]} 6. h4 {[%emt 0:00:02]} h5 {[%emt 0:00:09]} 7. c3 {[%emt 0:02:06]} Nd7 {[%emt 0:04:41]} 8. Be2 {[%emt 0:04:29]} c5 {[%emt 0:03:45]} 9. Nxh5 {[%emt 0:08:02]} Bxh5 {[%emt 0:00:43]} 10. Bxh5 {[%emt 0:00:04]} g6 {[%emt 0:00:27]} 11. Be2 {[%emt 0:11:02]} Rxh4 {[%emt 0:01:17]} 12. Rxh4 {[%emt 0:01:14]} Qxh4 {[%emt 0:00:02]} 13. Be3 {[%emt 0:00:19]} Rc8 {[%emt 1:25:03]} 14. g3 {[%emt 0:09:13]} Qd8 {[%emt 0:00:00]} 15. Nd2 {[%emt 0:02:42]} Ne7 {[%emt 0:00:00]} 16. g4 {[%emt 0:05:00]} Nc6 {[%emt 0:00:00]} 17. a3 {[%emt 0:02:52]} Be7 {[%emt 0:00:00]} 18. Kf1 {[%emt 0:03:04]} Bg5 {[%emt 0:00:00]} 19. f4 {[%emt 0:00:44]} Be7 {[%emt 0:00:00]} 20. Kg2 {[%emt 0:04:06]} Qb6 {[%emt 0:00:00]} 21. b4 {[%emt 0:00:34]} cxd4 {[%emt 0:00:00]} 22. cxd4 {[%emt 0:00:01]} g5 {[%emt 0:00:00]} 23. Nf3 {[%emt 0:01:44]} gxf4 {[%emt 0:05:00]} 24. Bxf4 {[%emt 0:01:31]} Nf8 {[%emt 0:00:00]} 25. Bg3 {[%emt 0:05:21]} Kd7 {[%emt 0:00:00]} 26. Rc1 {[%emt 0:12:04]} a6 {[%emt 0:00:00]} 27. Qd2 {[%emt 0:00:53]} Ng6 {[%emt 0:00:00]} 28. Rh1 {[%emt 0:01:02]} Rh8 {[%emt 0:00:00]} 29. Rh5 {[%emt 0:03:30]} Qd8 {[%emt 0:00:00]} 30. Qc1 {[%emt 0:04:06]} Qg8 {[%emt 0:00:00]} 31. Kf2 {[%emt 0:00:34]} Nf8 {[%emt 0:00:00]} 32. Qh1 {[%emt 0:02:17]} Rxh5 {[%emt 0:00:00]} 33. Qxh5 {[%emt 0:02:03]} Qg6 {[%emt 0:00:00]} 34. Qxg6 {[%emt 0:01:03]} Nxg6 {[%emt 0:00:00]} 35. Ke3 {[%emt 0:00:07]} Na7 {[%emt 0:00:00]} 36. Be1 {[%emt 0:01:26]} Kc6 {[%emt 0:00:00]} 37. Bd2 {[%emt 0:03:06]} Nb5 {[%emt 0:00:00]} 38. Bc1 {[%emt 0:04:35]} a5 {[%emt 0:02:54]} 1/2-1/2

[Event "Czech Extraliga 2024-25"]
[Site "Czechia"]
[Date "2024.11.02"]
[Round "1.8"]
[White "Turner, Radek"]
[Black "Pisk, Petr"]
[Result "1/2-1/2"]
[ECO "A25"]
[WhiteElo "2055"]
[BlackElo "2287"]
[Annotator "RC"]
[PlyCount "27"]
[EventDate "2024.09.12"]
[EventType "team-tourn"]
[EventCountry "CZE"]
[SourceTitle "playchess.com"]
[Source "ChessBase"]
[SourceQuality "1"]
[TimeControl "40/5400+30:1800+30"]

1. c4 {[%emt 1:31:00]} e5 {[%emt 1:31:00]} 2. g3 {[%emt 0:00:30]} Nf6 {[%emt 0:00:30]} 3. Bg2 {[%emt 0:00:30]} Nc6 {[%emt 0:00:30]} 4. Nc3 {[%emt 0:00:30]} Bb4 {[%emt 0:00:30]} 5. Nd5 {[%emt 0:00:30]} a5 {[%emt 0:00:30]} 6. e3 {[%emt 0:00:30]} O-O {[%emt 0:00:30]} 7. Ne2 {[%emt 0:00:30]} Re8 {[%emt 0:00:30]} 8. Nec3 {[%emt 0:00:30]} d6 {[%emt 0:00:30]} 9. O-O {[%emt 0:00:30]} Bxc3 {[%emt 0:00:30]} 10. Nxc3 {[%emt 0:00:30]} Be6 {[%emt 0:00:30]} 11. b3 {[%emt 0:00:30]} d5 {[%emt 0:00:30]} 12. d4 {[%emt 0:00:30]} exd4 {[%emt 0:00:30]} 13. exd4 {[%emt 0:00:30]} h6 {[%emt 0:00:30]} 14. Bf4 {[%emt 0:00:30]} 1/2-1/2